Cogmind - Beta 12 @@@ ROGUE MODE // 2023.11.01 @ 22:24:20 Player: Figgis Result: Destroyed by B-75 Beast with Heavy Machine Gun Performance ------------- Evolutions (4) 2000 Regions Visited (11) 2200 Robots Destroyed (42) 210 Value Destroyed (1022) 1022 Prototype IDs (32) 640 Alien Tech Used (0) 0 Bonus (1158) 1158 TOTAL SCORE: 7230 Bonus ------- High Alert Combat Kills 6 Follower Combat Kills 177 Entered Garrisons 200 Used RIF Installer 500 Aligned with FarCom 300 Friendly Fire -25 Cogmind --------- Core Integrity 0/850 Matter 300/300 Energy 100/100 System Corruption 1% Temperature Cool (0) Movement Core (50) Location -6/Extension Parts ------- > --- POWER (1) -------- (None) > --- PROPULSION (6) --- (None) > --- UTILITY (5) ------ (None) > --- WEAPON (3) ------- (None) > --- INVENTORY (5) ---- Advanced Heat Sink Improved Reaction Control System Improved Shield Generator System Restoration Module Trap Reconfigurator Peak State ------------ > --- POWER ------------ Angular Momentum Engine > --- PROPULSION ------- Cesium-ion Thruster Improved VTOL Module Xenon Bombardment Thruster Nuclear Pulse Thruster Biomechanical Wings Biomechanical Wings > --- UTILITY ---------- Medium Storage Unit Weight Redist. System Improved Reaction Control System Phase Shifter Trap Reconfigurator > --- WEAPON ----------- Scythe Great Axe Spear > --- INVENTORY -------- Advanced Heat Sink Energy Well Advanced Terrain Scanner Force Booster Transmission Jammer Improved Shield Generator Improved Shield Generator System Restoration Module Improved Field Recycling Unit [Rating: 69] Favorites ----------- Power Ion Engine Engine Ion Engine Power Core Light Nuclear Core Propulsion Aluminum Leg Leg Aluminum Leg Flight Unit Xenon Bombardment Thruster Utility Sensor Array Device Sensor Array Storage High-capacity Storage Unit Processor Melee Analysis Suite Hackware Improved System Shield Protection Hardened Light Armor Plating Weapon Beamcaster Energy Gun Beamcaster Ballistic Gun Light Assault Rifle Ballistic Cannon Mini Assault Cannon Launcher Rocket Launcher Slashing Weapon Scythe Piercing Weapon Makeshift Spear Build | -11 -10 -10 -9 -9 -9 -8 -8 -7 -6 -6 -6 ------- Run | Jun Mat Min Mat Min Exi Min Mat Fac Fac Gar Ext Slots Evolved 8 | . . . 2 . . . 2 2 2 . . Power . | . . . . . . . . . . . . Propulsion 4 | . . . . . . . 2 1 1 . . Utility 3 | . . . 1 . . . . 1 1 . . Weapon 1 | . . . 1 . . . . . . . . Parts Attached 103 | 3 9 3 12 2 1 7 19 28 15 4 . Power 13 | 1 . 1 2 . . 1 1 6 1 . . Engine 11 | 1 . 1 2 . . 1 1 4 1 . . Core 2 | . . . . . . . . 2 . . . Reactor . | . . . . . . . . . . . . Propulsion 31 | 2 . 1 4 1 . 3 10 7 3 . . Treads . | . . . . . . . . . . . . Leg 17 | 2 . 1 4 1 . 3 6 . . . . Wheel . | . . . . . . . . . . . . Hover . | . . . . . . . . . . . . Flight 14 | . . . . . . . 4 7 3 . . Utility 37 | . 6 . 1 . . 2 8 10 8 2 . Device 21 | . 1 . 1 . . 1 4 6 6 2 . Storage 9 | . 5 . . . . . 4 . . . . Processor 3 | . . . . . . . . 2 1 . . Hackware 1 | . . . . . . . . . 1 . . Protection 3 | . . . . . . 1 . 2 . . . Artifact . | . . . . . . . . . . . . Weapon 22 | . 3 1 5 1 1 1 . 5 3 2 . Energy Gun 7 | . 3 . 2 . . 1 . 1 . . . Energy Cannon . | . . . . . . . . . . . . Ballistic Gun 3 | . . 1 2 . . . . . . . . Ballistic Cannon 1 | . . . . . . . . 1 . . . Launcher 1 | . . . . . 1 . . . . . . Special Weapon . | . . . . . . . . . . . . Impact Weapon . | . . . . . . . . . . . . Slashing Weapon 5 | . . . . . . . . 2 2 1 . Piercing Weapon 5 | . . . 1 1 . . . 1 1 1 . Special Melee Weapon . | . . . . . . . . . . . . Unidentified Prototypes 5 | . . . . . . . 1 3 1 . . Parts Lost 26 | . 1 3 1 2 . 3 4 5 . 4 3 Power 3 | . . 1 . . . 1 . 1 . . . Propulsion 13 | . . 1 1 . . . 3 3 . 3 2 Utility 4 | . . . . . . 1 . 1 . 1 1 Weapon 6 | . 1 1 . 2 . 1 1 . . . . Highest Loss Streak 5 | . 1 1 1 2 . 3 2 5 . 3 3 To Critical Strikes . | . . . . . . . . . . . . Average Slot Usage (%) 86 | . 96 93 98 85 93 98 71 69 81 80 18 Engine 8 | . 14 8 11 11 11 10 8 2 1 5 . Leg 17 | . 28 28 21 22 22 22 7 7 . . . Flight 8 | . . . . . . . 24 24 28 31 12 Device 17 | . 12 14 21 22 22 17 11 9 16 24 . Storage 10 | . 13 14 11 11 11 11 9 7 6 6 5 Processor 1 | . . . . . . . . 7 4 . . Energy Gun 10 | . 26 18 9 11 11 10 3 . . . . Ballistic Gun 2 | . . 9 22 . . . . . . . . Launcher 1 | . . . . . 5 11 . . . . . Slashing Weapon 1 | . . . . . . . . 3 9 5 . Piercing Weapon 4 | . . . 1 8 11 11 6 1 2 5 . Naked Turns 5 | . . . . . . . . . . . 5 Heaviest Build 61 | 3 48 48 54 54 58 61 57 28 34 31 10 Greatest Support 50 | 3 20 20 20 20 20 20 50 35 34 34 11 Greatest Overweight (x) 5 | . 2 2 5 2 2 3 2 . 1 . . Average Overweight (x) . | . . 2 2 2 2 2 . . . . . Largest Inventory Capacity 25 | 5 25 20 20 20 20 20 25 10 10 10 10 Average Capacity 16 | 5 15 20 20 20 20 20 13 10 10 10 9 Most Carried 20 | 5 9 18 20 20 20 20 18 10 10 10 10 Average Carried 14 | 3 7 14 19 19 19 19 10 9 9 9 9 Final Capacity 20 | 5 20 20 20 20 20 20 10 10 10 10 5 Final Carried 20 | 5 9 18 20 20 20 19 8 9 10 10 5 Class Distribution -------------------- 38% | Mutant 34% | Scavenger-Mutant 14% | Sprinter 6% | Scavenger-Skirmisher 5% | Scavenger-Assassin Dominant Class ---------------- Mutant | -10/Materials Mutant | -10/Mines Scavenger-Skirmisher | -9/Materials Scavenger-Mutant | -9/Mines Scavenger-Mutant | -9/Exiles Scavenger-Assassin | -8/Mines Sprinter | -8/Materials Mutant | -7/Factory Sprinter | -6/Factory Sprinter | -6/Garrison Mutant | -6/Extension Resources | -11 -10 -10 -9 -9 -9 -8 -8 -7 -6 -6 -6 ----------- Run | Jun Mat Min Mat Min Exi Min Mat Fac Fac Gar Ext Matter Collected 995 | 187 128 62 154 24 . 80 36 57 248 15 4 Remotely . | . . . . . . . . . . . . Salvage Created 1671 | . 434 175 259 44 . 273 36 . 123 327 . Parts 99 | . 36 8 16 6 . 8 2 . 14 9 . Haulers Intercepted 1 | . 1 . . . . . . . . . . Recyclers Shooed 1 | . 1 . . . . . . . . . . Parts Field Recycled 9 | . . . . . . . . 9 . . . Retrieved Matter 252 | . . . . . . . . 252 . . . Parts Self-Destructed . | . . . . . . . . . . . . Prevented . | . . . . . . . . . . . . Kills | -11 -10 -10 -9 -9 -9 -8 -8 -7 -6 -6 -6 ------- Run | Jun Mat Min Mat Min Exi Min Mat Fac Fac Gar Ext Combat Hostiles Destroyed 33 | . 9 5 9 4 . 5 . . . 1 . Melee 2 | . . . . . . 1 . . . 1 . Guns 26 | . 5 5 9 4 . 3 . . . . . AOE 4 | . 4 . . . . . . . . . . Classes Destroyed 10 | . 7 1 1 . . . . . 1 . . Builder 1 | . 1 . . . . . . . . . . Tunneler 1 | . 1 . . . . . . . . . . Hauler 1 | . 1 . . . . . . . . . . Recycler 1 | . 1 . . . . . . . . . . Operator 2 | . . . . . . . . . 2 . . Watcher 5 | . 2 . . . . . 1 . 2 . . Swarmer 14 | . 6 . 4 3 . . . . . 1 . Grunt 15 | . 3 4 4 . . 4 . . . . . Brawler 2 | . . . 1 . . 1 . . . . . Assembled 2 | . . 1 . 1 . . . . . . . Best Kill Streak 7 | . 4 1 7 3 . 3 1 . 1 1 . Combat Bots Only 7 | . 3 1 7 3 . 3 . . . 1 . Max Kills in Single Turn 2 | . 2 1 2 1 . 1 1 . 1 1 . Gunslinging 1 | . . . 1 . . . . . . . . Exploded 2 | . 2 . . . . . . . . . . Melee 1 | . . . . . . 1 . . . 1 . Uniques/NPCs Destroyed . | . . . . . . . . . . . . Combat | -11 -10 -10 -9 -9 -9 -8 -8 -7 -6 -6 -6 -------- Run | Jun Mat Min Mat Min Exi Min Mat Fac Fac Gar Ext Damage Taken 3410 | . 145 494 342 99 . 241 253 558 93 500 685 Core 1283 | . 18 134 67 10 . 36 37 130 37 246 568 Absorbed by Shields 21 | . . . . . . . . . . . 21 Core Remaining (%) 76 | 100 . 39 . . . 71 93 81 . . . Volleys Fired 98 | . 24 29 19 10 . 15 . 1 . . . Largest 3 | . 2 2 3 3 . 1 . 1 . . . Hottest 115 | . 80 80 115 115 . 75 . 69 . . . Shots Fired 200 | . 48 59 57 20 . 15 . 1 . . . Gun 200 | . 48 59 57 20 . 15 . 1 . . . Cannon . | . . . . . . . . . . . . Launcher . | . . . . . . . . . . . . Special . | . . . . . . . . . . . . Kinetic 74 | . . 26 38 10 . . . . . . . Thermal 77 | . 2 30 19 10 . 15 . 1 . . . Explosive . | . . . . . . . . . . . . Electromagnetic 49 | . 46 3 . . . . . . . . . Robot Hit Streak 12 | . 6 10 12 3 . 7 . 3 . . . Robot Miss Streak 13 | . 9 4 9 13 . 2 . . . . . Penetration Max . | . . . . . . . . . . . . Secondary Targets 6 | . 1 1 3 1 . . . . . . . Max Gunslinging Chain 1 | . 1 1 1 1 . . . . . . . Shots Hit Robots 139 | . 24 40 33 9 . 13 1 1 8 10 . Core Hits 73 | . 18 17 15 6 . 6 1 1 4 5 . Critical Kills . | . . . . . . . . . . . . Critical Parts Destroyed . | . . . . . . . . . . . . Critical Strikes 4 | . 1 . 1 . . 2 . . . . . Burn 3 | . . . 1 . . 2 . . . . . Corrupt 1 | . 1 . . . . . . . . . . Melee Attacks 151 | . . . . . . 3 6 63 36 43 . Impact . | . . . . . . . . . . . . Slashing 73 | . . . . . . . . 49 16 8 . Piercing 78 | . . . . . . 3 6 14 20 35 . Sneak Attacks 3 | . . . . . . . . . 3 . . Combat Hostiles . | . . . . . . . . . . . . Follow-up Attacks 5 | . . . . . . . . . 4 1 . Damage Inflicted 2934 | . 546 450 410 178 . 320 43 20 435 532 . Guns 1643 | . 358 450 406 178 . 231 . 20 . . . Cannons . | . . . . . . . . . . . . Explosions 187 | . 187 . . . . . . . . . . Melee 1099 | . . . . . . 89 43 . 435 532 . Ramming 5 | . 1 . 4 . . . . . . . . Kinetic 448 | . . 172 231 45 . . . . . . . Thermal 1029 | . 213 257 175 133 . 231 . 20 . . . Explosive . | . . . . . . . . . . . . Electromagnetic 353 | . 332 21 . . . . . . . . . Impact . | . . . . . . . . . . . . Slashing 440 | . . . . . . . . . 290 150 . Piercing 659 | . . . . . . 89 43 . 145 382 . Highest Corruption 10 | . . 2 . . . . 8 10 1 1 1 Average Corruption 2 | . . 2 . . . . 7 7 1 1 1 Corruption Purged 5 | . . . . . . . . 5 . . . Corruption Blocked . | . . . . . . . . . . . . Effects 32 | . . 14 . . . . 2 8 5 3 . Message Errors 6 | . . 2 . . . . . 1 2 1 . Matter Fused 5 | . . 2 . . . . . 2 . 1 . Heat Flow Errors 4 | . . 2 . . . . 2 . . . . Energy Discharges 4 | . . 1 . . . . . 2 . 1 . Data Loss (minor) 10 | . . 5 . . . . . 3 2 . . Data Loss (major) 1 | . . 1 . . . . . . . . . Misfires 1 | . . 1 . . . . . . . . . Alerts 1 | . . . . . . . . . 1 . . Overload Shots . | . . . . . . . . . . . . Overflow Damage 38 | . 8 . . . . 12 . . 16 2 . Projectiles . | . . . . . . . . . . . . Explosions 8 | . 8 . . . . . . . . . . Melee 30 | . . . . . . 12 . . 16 2 . Knockbacks . | . . . . . . . . . . . . Impact . | . . . . . . . . . . . . Kinetic . | . . . . . . . . . . . . Secondary . | . . . . . . . . . . . . Self-Inflicted Damage 39 | . 39 . . . . . . . . . . Shots 1 | . 1 . . . . . . . . . . Rammed . | . . . . . . . . . . . . Targets Rammed 5 | . 2 1 1 1 . . . . . . . Kicked 5 | . 2 1 1 1 . . . . . . . Crushed . | . . . . . . . . . . . . Highest Temperature 315 | . 72 315 134 52 . 75 170 29 . 2 . Average Temperature 65 | . 24 113 60 25 . 35 80 15 . 2 . Received Heat Transfer 816 | . 18 273 66 . . 135 45 . 21 126 132 Effects 2 | . . 2 . . . . . . . . . Interference 2 | . . 2 . . . . . . . . . Siege Activations . | . . . . . . . . . . . . Robots Corrupted . | . . . . . . . . . . . . Combat Hostiles . | . . . . . . . . . . . . Parts Fried 4 | . 4 . . . . . . . . . . Impact Corruptions . | . . . . . . . . . . . . Robots Melted 1 | . . . . . . 1 . . . . . Combat Hostiles 1 | . . . . . . 1 . . . . . Parts Melted 4 | . . . 2 . . 2 . . . . . Heat Transferred 2134 | . 400 550 370 222 . 555 . 37 . . . Parts Sabotaged . | . . . . . . . . . . . . Parts Stolen . | . . . . . . . . . . . . Parts Stripped . | . . . . . . . . . . . . Power Chain Reactions 5 | . 5 . . . . . . . . . . Missiles Intercepted . | . . . . . . . . . . . . Alert | -11 -10 -10 -9 -9 -9 -8 -8 -7 -6 -6 -6 ------- Run | Jun Mat Min Mat Min Exi Min Mat Fac Fac Gar Ext Peak Influence 701 | . 162 161 191 63 . 111 97 176 300 701 423 Initial 375 | . . 4 . 13 . . 11 44 32 219 375 Average 74 | . 85 57 85 12 . 60 42 48 96 341 388 Maximum Alert Level 3 | . . . . . . . . . 1 3 2 Low Security (%) 90 | 100 100 100 100 100 . 100 100 100 75 . . Level 1 8 | . . . . . . . . . 24 87 79 Level 2 1 | . . . . . . . . . . 12 20 Level 3 . | . . . . . . . . . . . . Level 4 . | . . . . . . . . . . . . Level 5 . | . . . . . . . . . . . . High Security . | . . . . . . . . . . . . Max Security . | . . . . . . . . . . . . Squads Dispatched 11 | . 2 1 . . . . . 4 1 . 3 Investigation 5 | . 1 . . . . . . 1 . . 3 Extermination 1 | . . . . . . . . 1 . . . Reinforcement 4 | . 1 . . . . . . 2 1 . . Assault 1 | . . 1 . . . . . . . . . Garrison . | . . . . . . . . . . . . Intercept . | . . . . . . . . . . . . Searches Triggered . | . . . . . . . . . . . . Construction Impeded . | . . . . . . . . . . . . Haulers Reinforced 1 | . . . . . . . . . 1 . . Active Scanning Responses . | . . . . . . . . . . . . Cargo Convoy Interrupts . | . . . . . . . . . . . . Stealth | -11 -10 -10 -9 -9 -9 -8 -8 -7 -6 -6 -6 --------- Run | Jun Mat Min Mat Min Exi Min Mat Fac Fac Gar Ext Distress Signals 7 | . 2 . 1 . . . 1 1 1 . 1 Communications Jammed 1 | . . . . . . . . . 1 . . Distress Signals 1 | . . . . . . . . . 1 . . Times Spotted 136 | . 15 16 14 7 . 8 6 13 17 29 11 Peak Tracking Total 15 | . 4 4 7 3 . 3 5 4 10 15 10 Tactical Retreats 17 | . . 1 . . . . . 8 4 3 1 Traps | -11 -10 -10 -9 -9 -9 -8 -8 -7 -6 -6 -6 ------- Run | Jun Mat Min Mat Min Exi Min Mat Fac Fac Gar Ext Traps Triggered 5 | . 1 . . . . . . 2 1 . 1 Indirectly . | . . . . . . . . . . . . Trap Hack Attempts . | . . . . . . . . . . . . Triggered . | . . . . . . . . . . . . Disarmed . | . . . . . . . . . . . . Reprogrammed . | . . . . . . . . . . . . Reused 13 | . . . . . . . 2 . 5 6 . Traps Reconfigurated 19 | . . . . . . . 5 . 6 8 . Traps Extracted . | . . . . . . . . . . . . Installed . | . . . . . . . . . . . . Triggered 14 | . . 1 . . . . 2 . 5 6 . Machines | -11 -10 -10 -9 -9 -9 -8 -8 -7 -6 -6 -6 ---------- Run | Jun Mat Min Mat Min Exi Min Mat Fac Fac Gar Ext Machines Disabled 4 | . . . . . . . . . . 4 . Max in Single Turn 1 | . . . . . . . . . . 1 . Machines Repaired . | . . . . . . . . . . . . Machines Sabotaged . | . . . . . . . . . . . . Overloaded Fab Kills . | . . . . . . . . . . . . Hacking | -11 -10 -10 -9 -9 -9 -8 -8 -7 -6 -6 -6 --------- Run | Jun Mat Min Mat Min Exi Min Mat Fac Fac Gar Ext Machines Accessed 38 | . 6 . 2 . 2 . 4 7 6 3 8 Terminals 30 | . 5 . 1 . . . 4 5 4 3 8 Fabricators 2 | . . . . . . . . 2 . . . Repair Stations 1 | . . . 1 . . . . . . . . Recycling Units 1 | . 1 . . . . . . . . . . Scanalyzers 1 | . . . . . . . . . 1 . . Garrison Access 1 | . . . . . . . . . 1 . . Total Hacks 80 | . 20 . 3 . 2 . 10 11 9 7 18 Successful 33 | . 10 . 1 . 2 . 4 4 5 3 4 Failed 47 | . 10 . 2 . . . 6 7 4 4 14 Catastrophic 13 | . 2 . . . . . . 5 2 1 3 Database Lockouts . | . . . . . . . . . . . . Manual 15 | . 12 . . . 1 . . 1 . 1 . Terminals 68 | . 19 . 1 . . . 10 7 6 7 18 Fabricators 4 | . . . . . . . . 4 . . . Repair Stations 2 | . . . 2 . . . . . . . . Recycling Units 1 | . 1 . . . . . . . . . . Scanalyzers 2 | . . . . . . . . . 2 . . Garrison Access 1 | . . . . . . . . . 1 . . Terminal Hacks 28 | . 9 . 1 . 2 . 4 3 2 3 4 Record 1 | . . . . . 1 . . . . . . Robot Analysis 3 | . 3 . . . . . . . . . . Prototype ID Bank 2 | . 1 . . . . . . 1 . . . Open Door 5 | . . . . . . . . . . 1 4 Open DSF 1 | . . . . . . . . 1 . . . Emergency Access Points 2 | . 1 . . . . . 1 . . . . Alert Level 1 | . . . . . . . 1 . . . . Unreport Threat 2 | . . . . . . . . . 2 . . Locate Traps 4 | . 2 . . . . . 2 . . . . Recall Investigation 1 | . 1 . . . . . . . . . . Hauler Manifests 1 | . . . 1 . . . . . . . . Zone Layout 2 | . 1 . . . . . . 1 . . . Garrison Registry 1 | . . . . . . . . . . 1 . Patrol Navigation 1 | . . . . . . . . . . 1 . EX-Prototype ID Bank 1 | . . . . . 1 . . . . . . Fabricator Hacks 1 | . . . . . . . . 1 . . . Network Status 1 | . . . . . . . . 1 . . . Repair Station Hacks . | . . . . . . . . . . . . Recycling Unit Hacks 1 | . 1 . . . . . . . . . . Report Inventory 1 | . 1 . . . . . . . . . . Scanalyzer 2 | . . . . . . . . . 2 . . Insert Component 1 | . . . . . . . . . 1 . . Analyze 1 | . . . . . . . . . 1 . . Garrison Access Hacks 1 | . . . . . . . . . 1 . . Unlock Access 1 | . . . . . . . . . 1 . . Unauthorized Hacks . | . . . . . . . . . . . . Terminals . | . . . . . . . . . . . . Fabricators . | . . . . . . . . . . . . Repair Stations . | . . . . . . . . . . . . Recycling Units . | . . . . . . . . . . . . Scanalyzers . | . . . . . . . . . . . . Garrison Access . | . . . . . . . . . . . . Data Cores Recovered 2 | . . . . . . . . . 2 . . Used . | . . . . . . . . . . . . Hacking Detections 29 | . 5 . 1 . . . 3 7 5 1 7 Full Trace Events 4 | . . . . . . . . 1 . . 3 Feedback Events . | . . . . . . . . . . . . Feedback Blocked . | . . . . . . . . . . . . Robot Schematics Acquired . | . . . . . . . . . . . . Robots Built . | . . . . . . . . . . . . Authchips . | . . . . . . . . . . . . Time . | . . . . . . . . . . . . Total Robot Build Rating . | . . . . . . . . . . . . Part Schematics Acquired 1 | . . . . . . . . . 1 . . Parts Built . | . . . . . . . . . . . . Authchips . | . . . . . . . . . . . . Time . | . . . . . . . . . . . . Total Part Build Rating . | . . . . . . . . . . . . Parts Repaired . | . . . . . . . . . . . . Time . | . . . . . . . . . . . . Parts Recycled . | . . . . . . . . . . . . Recycled Matter . | . . . . . . . . . . . . Retrieved Matter . | . . . . . . . . . . . . Retrieved Components . | . . . . . . . . . . . . Parts Scanalyzed 1 | . . . . . . . . . 1 . . Part Schematics Acquired 1 | . . . . . . . . . 1 . . Parts Damaged . | . . . . . . . . . . . . Bothacking | -11 -10 -10 -9 -9 -9 -8 -8 -7 -6 -6 -6 ------------ Run | Jun Mat Min Mat Min Exi Min Mat Fac Fac Gar Ext Used RIF Installer 1 | . . . . . . . . . . 1 . Robots Hacked . | . . . . . . . . . . . . Non-combat . | . . . . . . . . . . . . Combat . | . . . . . . . . . . . . Robot Hacks Applied . | . . . . . . . . . . . . Relay Couplers Released . | . . . . . . . . . . . . Fabnet Peak Effective % . | . . . . . . . . . . . . Robots Rewired . | . . . . . . . . . . . . Allies Hacked . | . . . . . . . . . . . . Hacks Repelled . | . . . . . . . . . . . . Allies | -11 -10 -10 -9 -9 -9 -8 -8 -7 -6 -6 -6 -------- Run | Jun Mat Min Mat Min Exi Min Mat Fac Fac Gar Ext Total Allies 11 | . . 3 . 3 . . . . . . 5 Largest Group 3 | . . 3 . 3 2 2 . . . . 3 Highest-Rated Group 87 | . . 73 . 40 32 32 . . . . 87 Highest-Rated Ally 39 | . . 31 . 16 16 16 . . . . 39 Total Orders . | . . . . . . . . . . . . Ally Attacks 86 | . . 45 . 17 . 13 . . . . 11 Total Damage 1141 | . . 604 . 117 . 179 . . . . 241 Kills 16 | . . 10 . 3 . 3 . . . . . Allies Corrupted . | . . . . . . . . . . . . Allies Melted . | . . . . . . . . . . . . Intel | -11 -10 -10 -9 -9 -9 -8 -8 -7 -6 -6 -6 ------- Run | Jun Mat Min Mat Min Exi Min Mat Fac Fac Gar Ext Robot Analysis Total 3 | . 3 . . . . . . . . . . Derelict Logs Recovered 1 | . . 1 . . . . . . . . . Drone Launches . | . . . . . . . . . . . . Drone Recoveries . | . . . . . . . . . . . . Exploration | -11 -10 -10 -9 -9 -9 -8 -8 -7 -6 -6 -6 ------------- Run | Jun Mat Min Mat Min Exi Min Mat Fac Fac Gar Ext Turns Passed 7958 | 25 805 968 550 1875 548 741 181 1081 639 433 112 Spaces Moved 5564 | 30 388 320 166 686 211 239 215 1430 1121 493 265 Core 93 | 30 54 . . . . . . . . . 9 Treads . | . . . . . . . . . . . . Legs 1999 | . 334 320 166 686 211 239 20 23 . . . Wheels . | . . . . . . . . . . . . Hover . | . . . . . . . . . . . . Flight 3472 | . . . . . . . 195 1407 1121 493 256 Fastest Speed 26 | 50 50 260 260 260 260 260 26 26 26 26 34 Average Speed 111 | 50 172 260 268 260 260 279 50 43 27 27 35 Slowest Speed 470 | 50 260 260 470 260 260 330 195 120 101 34 50 Overloaded Moves . | . . . . . . . . . . . . Propulsion Burnouts . | . . . . . . . . . . . . Robots Hopped 27 | . . . . . . . 3 13 4 2 5 Cave-ins Triggered 4 | . . . . . . . 2 2 . . . Exploration Rate (%) 46 | 4 60 73 23 97 58 35 26 42 29 69 41 Regions Visited 11 Branch Regions 5 Pre-discovered Areas 1 | . . . . . 1 . . . . . . Known Exits Taken 3 | . . . 1 . 1 . . . 1 . . Unknown Exits Taken 7 | 1 1 1 . 1 . 1 1 1 . . . Scrap Searched 4 | . . 3 . 1 . . . . . . . Spaces Dug 90 | . . . . . . . 3 49 21 17 . Terrain Destroyed 109 | . 19 . . . . . 3 49 21 17 . Melee 90 | . . . . . . . 3 49 21 17 . Projectile . | . . . . . . . . . . . . AOE 19 | . 19 . . . . . . . . . . Terrain Rammed . | . . . . . . . . . . . . Walls Destroyed . | . . . . . . . . . . . . Machines Disabled . | . . . . . . . . . . . . Actions | -11 -10 -10 -9 -9 -9 -8 -8 -7 -6 -6 -6 --------- Run | Jun Mat Min Mat Min Exi Min Mat Fac Fac Gar Ext Total 6913 | 38 475 403 237 762 212 298 285 1792 1405 727 279 Wait 886 | . 41 39 18 62 . 30 22 262 228 184 . Move 5494 | 29 387 319 165 685 210 238 206 1401 1112 485 257 Hop 25 | . . . . . . . 3 13 4 2 3 Pick Up 71 | 6 10 12 11 1 1 1 3 16 8 . 2 Fast Attach 16 | 2 . . 1 . . 1 1 5 6 . . Attach 44 | 1 5 3 2 1 1 2 8 14 6 1 . Detach 24 | . . . . . . . 9 6 3 6 . Swap 43 | . 4 . 9 1 . 4 10 9 3 3 . Drop 62 | . 2 . 11 1 . 4 15 12 9 6 2 Fire 98 | . 24 29 19 10 . 15 . 1 . . . Melee 126 | . . . . . . 3 6 51 26 40 . Ram . | . . . . . . . . . . . . Kick 5 | . 2 1 1 1 . . . . . . . Crush . | . . . . . . . . . . . . Escape Stasis 19 | . . . . . . . 2 2 . . 15 Rewire . | . . . . . . . . . . . . Trap . | . . . . . . . . . . . . Miscellaneous . | . . . . . . . . . . . . Route ------- -11/Junkyard -10/Materials (discovered 3 exits: *Mat x2 / [*Min]) -10/Mines (discovered 2 exits: *Mat x2) -9/Materials -9/Mines (discovered 3 exits: *Mat x2 / *Exi) -9/Exiles -8/Mines -8/Materials -7/Factory -6/Factory (discovered 2 exits: [*Fac] / Gar) -6/Garrison (discovered 3 exits: *Ext x3) -6/Extension History --------- Turn | Location | Event 12 | -11/Junkyard | Discovered new exit (range 16) 26 | -11/Junkyard | Entered Materials 138 | -10/Materials | Discovered new exit (range 10) 314 | -10/Materials | Build established: Mutant 460 | -10/Materials | Discovered new exit (range 6) 504 | -10/Materials | Discovered new exit (range 15) 831 | -10/Materials | Entered Mines 832 | -10/Mines | Met a Derelict testing a Signal Generator 886 | -10/Mines | Excavation squad dispatched 886 | -10/Mines | A large section of the Mines collapsed 1136 | -10/Mines | Excavation squad dispatched 1386 | -10/Mines | Excavation squad dispatched 1447 | -10/Mines | Core integrity fell below 50% 1484 | -10/Mines | Discovered new exit (range 15) 1575 | -10/Mines | Found a damaged Exp. Sensor Array with a note attached 1580 | -10/Mines | Found Prototype Device 1745 | -10/Mines | Discovered new exit (range 8) 1799 | -10/Mines | Entered Materials 1799 | -9/Materials | Evolved 2 slots: Utility x1, Weapon x1 1800 | -9/Materials | Identified exit to Mines 1962 | -9/Materials | Destroyed 7 combat bots 2349 | -9/Materials | Entered Mines 2430 | -9/Mines | Discovered new exit (range 11) 2609 | -9/Mines | Deemed a non-threat by the Exiles lab entrance 2656 | -9/Mines | Build established: Scavenger-Mutant 2702 | -9/Mines | Assembled infested the area 2784 | -9/Mines | Received a Rocket Launcher from a helpful Derelict 2977 | -9/Mines | Assisted by bots powering up and referring to "LRC-V3" 3567 | -9/Mines | Found a hidden stash of uninstalled traps 3744 | -9/Mines | Discovered new exit (range 7) 4201 | -9/Mines | Discovered new exit (range 5) 4224 | -9/Mines | Entered Exiles 4224 | -9/Exiles | Accompanied by 2 allies 4225 | -9/Exiles | Identified exit to Mines 4287 | -9/Exiles | Met 8R-AWN 4334 | -9/Exiles | Met EX-HEX 4401 | -9/Exiles | Met EX-BIN 4432 | -9/Exiles | Aligned with FarCom system 4435 | -9/Exiles | Given EX-Vault access code 4495 | -9/Exiles | Opened EX-Vault 4524 | -9/Exiles | Found Trap Reconfigurator 4577 | -9/Exiles | Warned to stay clear of 0b10 Research branches 4653 | -9/Exiles | Met EX-DEC 4663 | -9/Exiles | Learned location of Zion (-6) 4772 | -9/Exiles | Left Exiles lab with Trap Reconfigurator 4772 | -9/Exiles | Entered Mines 4772 | -8/Mines | Accompanied by 2 allies 4930 | -8/Mines | Discovered new exit (range 3) 5082 | -8/Mines | Build established: Scavenger-Assassin 5268 | -8/Mines | Lost 3 parts (1p1u1w) 5513 | -8/Mines | Entered Materials 5513 | -8/Materials | Evolved 2 slots: Propulsion x2 5551 | -8/Materials | Identified Exp. Sensor Array 5632 | -8/Materials | Crushed by falling debris 5633 | -8/Materials | Crushed by falling debris 5672 | -8/Materials | Discovered new exit (range 16) 5694 | -8/Materials | Entered Factory 5694 | -7/Factory | Evolved 2 slots: Propulsion x1, Utility x1 5937 | -7/Factory | Build established: Mutant 6558 | -7/Factory | Crushed by falling debris 6565 | -7/Factory | Crushed by falling debris 6596 | -7/Factory | Lost 5 parts (1p3n1u) 6650 | -7/Factory | System corruption reached 10% 6774 | -7/Factory | Discovered new exit (range 5) 6775 | -7/Factory | Entered another Factory area 6775 | -6/Factory | Evolved 2 slots: Propulsion x1, Utility x1 7108 | -6/Factory | Discovered new exit (range 4) 7414 | -6/Factory | Identified exit to Garrison 7414 | -6/Factory | Entered Garrison 7512 | -6/Garrison | Triggered checkpoint 7615 | -6/Garrison | Discovered new exit (range 12) 7618 | -6/Garrison | Attempted to access garrison exit controls, blocked by remote lockdown 7651 | -6/Garrison | Discovered new exit (range 68) 7651 | -6/Garrison | Discovered new exit (range 55) 7651 | -6/Garrison | Discovered new exit (range 12) 7672 | -6/Garrison | Triggered checkpoint 7788 | -6/Garrison | Attempted to access garrison exit controls, blocked by remote lockdown 7804 | -6/Garrison | Installed Relay Interface Framework 7816 | -6/Garrison | Triggered checkpoint 7832 | -6/Garrison | Triggered checkpoint 7847 | -6/Garrison | Entered Extension 7860 | -6/Extension | Lost 3 parts (2n1u) 7881 | -6/Extension | Rescued a captive Derelict 7888 | -6/Extension | Rescued a captive Derelict 7889 | -6/Extension | Rescued a captive Derelict 7921 | -6/Extension | Rescued a captive Derelict 7936 | -6/Extension | Rescued a captive Derelict 7938 | -6/Extension | Spotted B-75 Beast 7940 | -6/Extension | Spotted B-75 Beast 7941 | -6/Extension | Core integrity fell below 50% 7953 | -6/Extension | Core integrity fell below 20% 7959 | -6/Extension | Destroyed by B-75 Beast with Heavy Machine Gun Last Messages --------------- 07936_ XQ-4MW(g): "Free at last!" 07940_ Med. Storage Unit destroyed. 07940_ Critical hit (Blast). 07941_ B-75 Beast suffers critical hit (Burn). 07941_ Dropped Energy Well. 07941_ XQ-4MW(g) Lgt. Angular Momentum Engine blasted off. 07941_ Acquired Trap Reconfigurator. 07942_ Imp. VTOL Module destroyed. 07943_ Knocked back. 07943_ Machine disabled. 07943_ Acquired 4 matter. 07946_ B-75 Beast Hvy. Machine Gun blasted off. 07948_ Connecting with Door Terminal... 07948_ ALERT: Suspicious activity at Terminal E001. Dispatching Investigation squad. 07954_ Biomechanical Wings destroyed. 07954_ Penetrated by Slug. 07957_ H-66 Slayer suffers critical hit (Destroy). 07957_ Penetrated by Slug. 07958_ Slug penetrates Wall. Map ----- +----------------------------------------------------+ | ?????????????????????????????????????????????????? | | ?????????????????????????????????????????????????? | | ?????????????????????????????????????????????????? | | ?????????????????????????????????????????????????? | | ?????????????????????????????????????????????????? | | ?????????????????????????????????????????????????? | | ?????????????????????????????????????????????????? | | ?????????????????????????????????????????????????? | | ?????????????????????????????????????????????????? | | ?????????????????????????????????????????????????? | | ?????????????????????????????????????????????????? | | ?????????????????????????????????????????????????? | | ?????????????????????????????????????????????????? | | ?????????????????????????????????????????????????? | | ??????# ?????????????????????????????????????????? | | ??????# ?????????????????????????????????????????? | | #####?# ?????????????????????????????????????????? | | ## ### ###??????????????????????????????????????? | | "" ""#??????????????????????????????????????? | | " " #??????????????????????????????????????? | | #??????????????????????????????????????? | | #??????????????????????????????????????? | | ##############################?????????? | | p ????????? | | % ????????? | | @ ????????? | | BB h ????????? | | BB h u u ????????? | | ##############################?????????? | | #??????????????????????????????????????? | | #??????????????????????????????????????? | | #??????????????????????????????????????? | | #??????????????????????????????????????? | | #"""#"#####??????????????????????????????????????? | | #???# #??????????????????????????????????????????? | | ????###??????????????????????????????????????????? | | | | | | | | | | | | | | | | | | | | | | | | | | | | | +----------------------------------------------------+ Best States ------------- Heat Dissipation 50 Energy Generation 18 Energy Capacity 300 Matter Stores 300 Matter Capacity 300 Sight Range 16 Robot Scan Range 14 Terrain Scan Range 20 Terrain Scan Density 10 Jamming Range 12 Additional Mass Support 6 Armor Coverage 150 Phase Shifting 5 Evasion (%) 79 Melee Accuracy 6 Defensive Hacking 12 Item Schematics ----------------- Imp. Shield Generator | -6/Factory | Scanalyzed Robot Schematics ------------------ None Fabricated ------------ Nothing Alien Tech Used ----------------- None Achievements -------------- None Challenges ------------ None Game ------ Seed MachineBarrageBoosters Manual? 0 Play Time 01:07:46 Cumulative 97.5 hours Start 2023.11.01 @ 21:17:07 End 2023.11.01 @ 22:24:20 Sessions 1 Manual Loads 0 Difficulty Rogue Special Mode None Game No. 161 Rogue 158 Adventurer 3 Explorer 0 Win Type - Total 0 Types 0/0/0/0/0/0/0/0/0 Lore% 42 Gallery% 55 Achievement% 39 Wizard Run 0 Options --------- ASCII 0 Keyboard 0 Movement Mouse Keybinds 0 Fullscreen 2 Font 18/SmallcapsGlow Map View 76x50 Tactical HUD 1 Map Filters NONE Filters NONE Steam 1 RUN: 700e741f-2ca7-46f3-84e0-46eda2674709